fUST/lending_fUST_20251107
["ID","MTS","AMOUNT","RATE_DAILY","PERIOD"]
[393339852,1762492238604,-500.0,0.00016977,2]
[393339854,1762492238614,-500.0,0.00016977,2]
[393339855,1762492238624,-500.0,0.00016977,2]
[393339857,1762492238634,-500.0,0.00016977,2]
[393339859,1762492238643,-500.0,0.00016977,2]
[393339861,1762492238653,-330.05775484,0.00016977,2]
[393339863,1762492238664,-500.0,0.00016977,2]
[393339865,1762492238679,-500.0,0.00016977,2]
[393339867,1762492238688,-500.0,0.00016977,2]
[393339870,1762492238698,-500.0,0.00016977,2]
[393339871,1762492238708,-500.0,0.00016977,2]
[393339873,1762492238718,-500.0,0.00016977,2]
[393339875,1762492238732,-500.0,0.00016977,2]
[393339877,1762492238742,-500.0,0.00016977,2]
[393339879,1762492238752,-500.0,0.00016977,2]
[393339881,1762492238762,-500.0,0.00016977,2]
[393339883,1762492238772,-500.0,0.00016977,2]
[393339885,1762492238782,-500.0,0.00016977,2]
[393339887,1762492238791,-500.0,0.00016977,2]
[393339889,1762492238801,-500.0,0.00016977,2]
[393339891,1762492238810,-500.0,0.00016977,2]
[393339893,1762492238820,-500.0,0.00016977,2]
[393339895,1762492238830,-500.0,0.00016977,2]
[393339897,1762492238841,-500.0,0.00016977,2]
[393339900,1762492238851,-500.0,0.00016977,2]
[393339912,1762492238970,-500.0,0.00016977,2]
[393339914,1762492238982,-500.0,0.00016977,2]
[393339916,1762492238992,-500.0,0.00016977,2]
[393339918,1762492239001,-435.80545137,0.00016977,2]
[393339920,1762492239010,-500.0,0.00016977,2]
[393339922,1762492239020,-500.0,0.00016982,2]
[393339923,1762492239029,-337.92769161,0.00016984,2]
[393339925,1762492239038,-500.0,0.00016984,2]
[393339927,1762492239047,-463.55046701,0.00016984,2]
[393339929,1762492239056,-241.06,0.00016986,2]
[393339931,1762492239066,-500.0,0.00016987,2]
[393339933,1762492239076,-500.0,0.00016987,2]
[393339935,1762492239085,-500.0,0.00016987,2]
[393339937,1762492239094,-500.0,0.00016987,2]
[393339939,1762492239104,-500.0,0.00016987,2]
[393339941,1762492239113,-500.0,0.00016987,2]
[393339943,1762492239122,-500.0,0.00016987,2]
[393339945,1762492239131,-500.0,0.00016987,2]
[393339947,1762492239141,-500.0,0.00016987,2]
[393339949,1762492239151,-500.0,0.00016987,2]
[393339951,1762492239161,-500.0,0.00016987,2]
[393339953,1762492239170,-506.00208048,0.00016987,2]
[393339955,1762492239180,-512.16971831,0.00016987,2]
[393339957,1762492239190,-132384.46129254,0.00016987,2]
[393339959,1762492239207,-1023.90249278,0.00016987,2]
[393339962,1762492239219,-360.82507419,0.00016987,2]
[393339964,1762492239233,-25585.73741858,0.00016987,2]
[393339966,1762492239244,-10244.7665794,0.00016987,2]
[393341392,1762492280268,-499.99999999,0.00016977,2]
[393341393,1762492280291,-573.45685349,0.00016977,2]
[393341394,1762492280313,-500.0,0.00016977,2]
[393341395,1762492280334,-300.0,0.00016986,2]
[393341396,1762492288999,-37416.54314652,0.00016987,2]
[393341397,1762492401413,-164.7814495,0.00016253,2]
[393341398,1762492401440,-532562.2185505,0.00016887,2]
[393341403,1762492574159,536.556096,0.00013699,2]
[393341404,1762492615521,163.8154257,0.000328,120]
[393341407,1762493049067,395.0,0.00014494,2]
[393341452,1762493244000,1914852.11748924,0.00037194,20]
[393341460,1762493288216,2305.88384851,0.000125,2]
[393341465,1762493310605,150.0,0.00032844,120]
[393341587,1762493432631,-170.73456761,0.00015513,2]
[393341589,1762493432640,-84.46543239,0.00015748,2]
[393341601,1762493432725,-283.32353234,0.00015748,2]
[393341637,1762493438607,-632.21103527,0.00015748,2]
[393341639,1762493438617,-3021.6203456,0.00015822,2]
[393341641,1762493438627,-379.73768882,0.00016552,2]
[393341643,1762493438636,-342.1597242,0.00016619,2]
[393341645,1762493438646,-300.0,0.00016796,2]
[393341647,1762493438655,-300.0,0.00016796,2]
[393341649,1762493438666,-1200.0,0.00016796,2]
[393341652,1762493438676,-16626.90860812,0.00016798,2]
[393341654,1762493438685,-481.11752832,0.00016816,2]
[393341655,1762493438694,-500.0,0.00016816,2]
[393341658,1762493438704,-300.0,0.00016816,2]
[393341659,1762493438713,-493.58054514,0.00016816,2]
[393341661,1762493438724,-500.0,0.00016816,2]
[393341663,1762493438734,-1455.62264134,0.00016817,2]
[393341665,1762493438743,-500.0,0.00016887,2]
[393341667,1762493438753,-500.0,0.00016887,2]
[393341669,1762493438763,-301.0,0.00016887,2]
[393341671,1762493438773,-44946.78263795,0.00016887,2]
[393341871,1762493440706,-2610.58152026,0.00016887,2]
[393341873,1762493440767,-1097.26320787,0.00016887,2]
[393341876,1762493440778,-8877.91735901,0.00016887,2]
[393341878,1762493440789,-531.71,0.00016887,2]
[393341880,1762493440799,-409.28017256,0.00016887,2]
[393342530,1762493447116,-6109.19549927,0.00016887,2]
[393342542,1762493447243,-355.3,0.00016887,2]
[393343328,1762494342457,168.0,0.00014478,2]
[393343331,1762494351238,168.0,0.00014478,2]
[393343333,1762494366190,168.0,0.00014478,2]
[393343334,1762494374026,164.21691945,0.00014478,2]
[393343339,1762494388887,168.0,0.00014478,2]
[393343340,1762494411163,168.0,0.00014478,2]
[393343341,1762494434287,168.0,0.00014478,2]
[393343342,1762494456814,168.0,0.00014478,2]
[393343344,1762494478886,168.0,0.00014478,2]
[393343345,1762494500840,168.0,0.00014478,2]
[393343346,1762494516247,168.0,0.00014478,2]
[393343492,1762494637671,-167.31987626,0.00014515,2]
[393343494,1762494637680,-167.31987626,0.00014662,2]
[393343496,1762494637690,-167.31987626,0.0001481,2]
[393343498,1762494637699,-168.0,0.00016665,2]
[393343500,1762494637708,-2382.83096423,0.000167,2]
[393343502,1762494637718,-1164.49811308,0.0001671,2]
[393343504,1762494637727,-1200.0,0.00016785,2]
[393343506,1762494637736,-256.0,0.00016785,2]
[393343508,1762494637745,-192.848,0.00016786,2]
[393343510,1762494637755,-176.84184735,0.00016786,2]
[393343512,1762494637764,-183.256906,0.00016786,2]
[393343514,1762494637773,-166.84770202,0.00016786,2]
[393343517,1762494637783,-500.0,0.00016786,2]
[393343518,1762494637792,-3106.91683854,0.00016787,2]
[393343521,1762494637803,-2680.63300675,0.00016787,2]
[393343573,1762494639943,-660.73634296,0.00016787,2]
[393343575,1762494639954,-350.0842972,0.00016787,2]
[393343577,1762494639965,-427.71782793,0.00016787,2]
[393344073,1762494737194,-5000000.0,0.0003719,20]
[393344074,1762494749454,-5000000.0,0.0003719,20]
[393344084,1762494819324,7766.0,0.00032877,120]
[393344085,1762494857853,-5000000.0,0.0003719,20]
[393344086,1762494863375,-1085175.88251076,0.0003719,20]
[393344087,1762494870962,1418.0,0.0003719,60]
[393344088,1762494871256,1418.0,0.0003719,60]
[393344089,1762494871504,1418.0,0.0003719,60]
[393344090,1762494871741,1418.0,0.0003719,60]
[393344091,1762494871984,1418.0,0.0003719,60]
[393344092,1762494872236,1418.0,0.0003719,60]
[393344093,1762494872509,1418.0,0.0003719,60]
[393344094,1762494872750,1418.0,0.0003719,60]
[393344095,1762494872992,1418.0,0.0003719,60]
[393344096,1762494873219,1418.0,0.0003719,60]
[393344097,1762494873467,1418.0,0.0003719,60]
[393344098,1762494874048,1418.0,0.0003719,60]
[393344099,1762494874281,1418.0,0.0003719,60]
[393344100,1762494874524,1418.0,0.0003719,60]
[393344101,1762494874757,1418.0,0.0003719,60]
[393344102,1762494874991,1418.0,0.0003719,120]
[393344103,1762494875239,1418.0,0.0003719,120]
[393344104,1762494875482,1418.0,0.0003719,120]
[393344105,1762494875724,1418.0,0.0003719,120]
[393344106,1762494875959,1418.0,0.0003719,120]
[393344107,1762494876301,1418.0,0.0003719,120]
[393344108,1762494876449,1418.0,0.0003719,120]
[393344109,1762494876682,1418.0,0.0003719,120]
[393344110,1762494876915,1418.15782736,0.0003719,120]
[393344111,1762494913615,761.52943937,0.0003719,20]
[393344120,1762495015630,253.488,0.0003719,20]
[393344121,1762495092767,236.852158,0.0003719,20]
[393344122,1762495168772,263.10487176,0.0003719,60]
[393344124,1762495334877,500.0,0.00037218,60]
[393344125,1762495335084,500.0,0.00037218,60]
[393344126,1762495335327,500.0,0.00037218,60]
[393344127,1762495335577,500.0,0.00037218,60]
[393344128,1762495335817,500.0,0.00037218,60]
[393344129,1762495336432,500.0,0.00037218,60]
[393344131,1762495336693,500.0,0.00037218,60]
[393344132,1762495336934,500.0,0.00037218,60]
[393344133,1762495337228,500.0,0.00037218,60]
[393344134,1762495337480,500.0,0.00037218,60]
[393344135,1762495337752,500.0,0.00037218,60]
[393344136,1762495337988,530.03500951,0.00037218,60]
[393344138,1762495443617,5051.91450454,0.00032876,120]
[393344139,1762495483662,555.0,0.00032876,120]
[393344140,1762495576393,497985.14,0.00037218,20]
[393344179,1762495831987,-300.0,0.00015476,2]
[393344181,1762495831997,-200.0,0.00015476,2]
[393344183,1762495832009,-100.0,0.00015476,2]
[393344185,1762495832019,-300.0,0.00015476,2]
[393344187,1762495832028,-1200.0,0.00015476,2]
[393344189,1762495832038,-300.0,0.00015476,2]
[393344191,1762495832048,-26611.00000002,0.00015477,2]
[393344193,1762495832059,-973.57,0.00015477,2]
[393344196,1762495832070,-2302.92704922,0.00015477,2]
[393344370,1762495837830,-500.0,0.00015476,2]
[393344371,1762495837840,-500.0,0.00015476,2]
[393344372,1762495837850,-500.0,0.00015476,2]
[393344373,1762495837860,-500.0,0.00015476,2]
[393344374,1762495837870,-500.0,0.00015476,2]
[393344375,1762495837879,-480.5422838,0.00015476,2]
[393344376,1762495837890,-5426.6577162,0.00015477,2]
[393344377,1762495837906,-15941.73843929,0.00015477,2]
[393344378,1762495837918,-21084.04781708,0.00015477,2]
[393344379,1762495837930,-488.57536421,0.00015477,2]
[393344380,1762495837941,-10624.62858651,0.00015477,2]
[393344424,1762495840136,-66830.16209994,0.00015477,2]
[393344772,1762495844937,-1263.549511,0.00015477,2]
[393344773,1762495844950,-48558.03988643,0.00015477,2]
[393344774,1762495844959,-248.11,0.000155,2]
[393344775,1762495844968,-248.11,0.000155,2]
[393344776,1762495844979,-248.11,0.000155,2]
[393344777,1762495844988,-169.82207491,0.00015523,2]
[393344778,1762495844997,-18877.10312964,0.00015523,2]
[393344779,1762495845006,-486.54880091,0.00015569,2]
[393344780,1762495845018,-1685.82403249,0.00015569,2]
[393344781,1762495845027,-248.11,0.000156,2]
[393344782,1762495845037,-248.11,0.000156,2]
[393344783,1762495845047,-248.11,0.000156,2]
[393344784,1762495845058,-208.021857,0.00015652,2]
[393344785,1762495845067,-248.11,0.000157,2]
[393344786,1762495845076,-248.11,0.000157,2]
[393344787,1762495845086,-248.11,0.000157,2]
[393344788,1762495845095,-248.11,0.000158,2]
[393344789,1762495845104,-248.11,0.000158,2]
[393344790,1762495845114,-248.11,0.000158,2]
[393344791,1762495845123,-28.436062,0.000159,2]
[393344847,1762495846593,-219.673938,0.000159,2]
[393344848,1762495846602,-248.11,0.000159,2]
[393344849,1762495846621,-248.11,0.000159,2]
[393344850,1762495846630,-2404.59690275,0.0001599,2]
[393344851,1762495846640,-248.11,0.00016,2]
[393344852,1762495846649,-248.11,0.00016,2]
[393344853,1762495846659,-248.11,0.00016,2]
[393344854,1762495846668,-248.11,0.00016,2]
[393344855,1762495846677,-248.11,0.000161,2]
[393344856,1762495846687,-248.11,0.000161,2]
[393344857,1762495846696,-248.11,0.000161,2]
[393344858,1762495846706,-248.11,0.000162,2]
[393344859,1762495846715,-248.11,0.000162,2]
[393344860,1762495846725,-248.11,0.000162,2]
[393344861,1762495846734,-248.11,0.000163,2]
[393344862,1762495846744,-248.11,0.000163,2]
[393344863,1762495846753,-248.11,0.000163,2]
[393344864,1762495846762,-248.11,0.000164,2]
[393344865,1762495846772,-248.11,0.000164,2]
[393344866,1762495846780,-248.11,0.000164,2]
[393344867,1762495846790,-771.20303908,0.00016452,2]
[393344868,1762495846799,-2084.97709371,0.00016496,2]
[393344869,1762495846808,-248.11,0.000165,2]
[393344870,1762495846818,-248.11,0.000165,2]
[393344871,1762495846827,-248.11,0.000165,2]
[393344872,1762495846836,-166.0,0.00016598,2]
[393344873,1762495846846,-500.0,0.00016598,2]
[393344874,1762495846856,-154.278,0.00016599,2]
[393344875,1762495846865,-248.11,0.000166,2]
[393344876,1762495846874,-248.11,0.000166,2]
[393344877,1762495846883,-248.11,0.000166,2]
[393344878,1762495846893,-248.11,0.000166,2]
[393344879,1762495846902,-370.0,0.00016607,2]
[393344880,1762495846916,-500.0,0.00016607,2]
[393344881,1762495846925,-370.0,0.00016661,2]
[393344882,1762495846935,-503.687773,0.00016673,2]
[393344883,1762495846944,-500.0,0.00016673,2]
[393344884,1762495846955,-500.0,0.00016673,2]
[393344885,1762495846964,-500.0,0.00016673,2]
[393344886,1762495846974,-500.0,0.00016673,2]
[393344887,1762495846985,-500.0,0.00016673,2]
[393344888,1762495846995,-500.0,0.00016673,2]
[393344889,1762495847004,-504.55393242,0.00016673,2]
[393344890,1762495847014,-262.2601274,0.00016687,2]
[393344891,1762495847024,-585.04453172,0.00016687,2]
[393344892,1762495847034,-6015.9817644,0.00016687,2]
[393344893,1762495847046,-2158.92021582,0.00016687,2]
[393344894,1762495847058,-2281.28905335,0.00016687,2]
[393344907,1762496038460,509.728291,0.00013699,2]
[393344909,1762496420585,169.332619,7.923e-05,2]
[393344913,1762496695864,324.62,0.0002328,30]
[393344917,1762496757196,5000.0,0.00018,3]
[393344918,1762496765558,5000.0,0.00018,3]
[393344923,1762496781192,2971.85436394,0.00018,3]
[393344924,1762496788975,1214.77552251,0.00018,3]
[393344949,1762496897673,100000.000001,0.00037204,30]
[393344973,1762496950855,6063.99618642,0.0003287,120]
[393345042,1762497032127,-166.42563341,0.00015166,2]
[393345043,1762497032137,-141.67366658,0.00016256,2]
[393345062,1762497038090,-12.60533342,0.00016256,2]
[393345064,1762497038101,-301.87319328,0.00016499,2]
[393345187,1762497040183,-5000.0,0.00016499,2]
[393345188,1762497040245,-1565.54291908,0.00016499,2]
[393345189,1762497040255,-1200.0,0.00016499,2]
[393345190,1762497040265,-2537.6362064,0.000165,2]
[393345191,1762497040277,-300.0,0.0001657,2]
[393345192,1762497040287,-500.0,0.00016573,2]
[393345193,1762497040298,-502.41176389,0.00016573,2]
[393345194,1762497040308,-500.0,0.00016573,2]
[393345195,1762497040317,-500.0,0.00016573,2]
[393345196,1762497040327,-507.03174889,0.00016573,2]
[393345197,1762497040336,-500.0,0.00016573,2]
[393345198,1762497040346,-685000.0,0.00016587,2]
[393345199,1762497040356,-180.0,0.000166,2]
[393345200,1762497040365,-180.0,0.000166,2]
[393345201,1762497040375,-180.0,0.000166,2]
[393345202,1762497040385,-180.0,0.000166,2]
[393345203,1762497040394,-229.35804061,0.000166,2]
[393345204,1762497040407,-156.7,0.000166,2]
[393345206,1762497040425,-500.0,0.00016673,2]
[393345208,1762497040435,-26183.3797627,0.00016685,2]
[393345210,1762497040444,-156.7,0.000167,2]
[393345212,1762497040454,-370.0,0.0001675,2]
[393345214,1762497040463,-370.0,0.00016781,2]
[393345216,1762497040472,-344.53558519,0.00016787,2]
[393345218,1762497040481,-156.7,0.000168,2]
[393345220,1762497040491,-370.0,0.00016893,2]
[393345222,1762497040500,-156.7,0.000169,2]
[393345224,1762497040509,-370.0,0.00016939,2]
[393345226,1762497040518,-22079.86185396,0.00017,2]
[393345228,1762497040528,-156.7,0.00017,2]
[393345230,1762497040537,-156.7,0.00017,2]
[393345232,1762497040546,-156.7,0.000171,2]
[393345234,1762497040555,-511.03545797,0.00017121,2]
[393345236,1762497040564,-1000.0,0.00017121,2]
[393345238,1762497040573,-1000.0,0.00017121,2]
[393345240,1762497040581,-1000.0,0.00017121,2]
[393345242,1762497040590,-370.0,0.00017133,2]
[393345244,1762497040599,-370.0,0.00017145,2]
[393345246,1762497040608,-196.38224742,0.00017166,2]
[393345248,1762497040617,-168.0,0.00017174,2]
[393345250,1762497040626,-412.0,0.00017178,2]
[393345252,1762497040635,-370.0,0.00017196,2]
[393345253,1762497040644,-370.0,0.00017198,2]
[393345255,1762497040653,-156.7,0.000172,2]
[393345257,1762497040663,-370.0,0.00017271,2]
[393345260,1762497040672,-152.04372701,0.00017271,2]
[393345262,1762497040681,-152.61777283,0.00017271,2]
[393345263,1762497040692,-151.0,0.00017271,2]
[393345265,1762497040707,-152.42837652,0.00017271,2]
[393345268,1762497040717,-151.0,0.00017271,2]
[393345269,1762497040726,-151.0,0.00017271,2]
[393345272,1762497040736,-152.79058965,0.00017271,2]
[393345273,1762497040745,-500.0,0.00017271,2]
[393345276,1762497040755,-151.0,0.00017271,2]
[393345277,1762497040765,-198.66617246,0.00017271,2]
[393345280,1762497040774,-258.68812301,0.00017271,2]
[393345282,1762497040784,-151.0,0.00017271,2]
[393345284,1762497040794,-151.0,0.00017271,2]
[393345285,1762497040804,-151.0,0.00017271,2]
[393345288,1762497040814,-151.0,0.00017271,2]
[393345289,1762497040823,-151.66635606,0.00017271,2]
[393345291,1762497040832,-151.49806548,0.00017271,2]
[393345293,1762497040841,-151.0,0.00017271,2]
[393345295,1762497040851,-500.0,0.00017271,2]
[393345297,1762497040860,-152.57100018,0.00017271,2]
[393345299,1762497040870,-201.70120124,0.00017271,2]
[393345302,1762497040879,-156.7,0.000173,2]
[393345303,1762497040888,-151.0,0.00017326,2]
[393345306,1762497040897,-151.0,0.00017326,2]
[393345308,1762497040906,-151.0,0.00017326,2]
[393345309,1762497040916,-500.0,0.00017326,2]
[393345312,1762497040925,-151.0,0.00017326,2]
[393345313,1762497040935,-151.0,0.00017326,2]
[393345315,1762497040944,-151.0,0.00017326,2]
[393345318,1762497040954,-151.0,0.00017326,2]
[393345320,1762497040963,-151.0,0.00017326,2]
[393345322,1762497040974,-216.61683072,0.00017326,2]
[393345324,1762497040985,-503.90995827,0.00017326,2]
[393345326,1762497040996,-168.0,0.00017376,2]
[393345328,1762497041005,-199.25415187,0.00017381,2]
[393345329,1762497041015,-199.791335,0.00017381,2]
[393345331,1762497041024,-279.79252975,0.00017381,2]
[393345333,1762497041033,-500.0,0.00017381,2]
[393345335,1762497041042,-151.0,0.00017381,2]
[393345337,1762497041051,-199.37845186,0.00017381,2]
[393345339,1762497041060,-200.71412212,0.00017381,2]
[393345341,1762497041070,-206.08073579,0.00017381,2]
[393345344,1762497041079,-200.60144544,0.00017381,2]
[393345346,1762497041088,-156.7,0.000174,2]
[393345348,1762497041098,-500.0,0.00017435,2]
[393345350,1762497041108,-237.02850865,0.00017435,2]
[393345352,1762497041117,-500.0,0.0001749,2]
[393345354,1762497041126,-156.7,0.000175,2]
[393345356,1762497041135,-500.0,0.00017545,2]
[393345358,1762497041144,-500.0,0.000176,2]
[393345360,1762497041153,-156.7,0.000176,2]
[393345362,1762497041163,-500.0,0.00017655,2]
[393345364,1762497041172,-156.7,0.000177,2]
[393345366,1762497041181,-500.0,0.00017709,2]
[393345368,1762497041190,-370.0,0.00017726,2]
[393345370,1762497041199,-473.77662275,0.00017764,2]
[393345372,1762497041208,-156.7,0.000178,2]
[393345374,1762497041217,-370.0,0.00017819,2]
[393345376,1762497041227,-370.0,0.00017822,2]
[393345378,1762497041236,-168.0,0.00017857,2]
[393345380,1762497041245,-156.7,0.000179,2]
[393345382,1762497041254,-370.0,0.00017907,2]
[393345384,1762497041264,-370.0,0.0001796,2]
[393345386,1762497041279,-370.0,0.00017981,2]
[393345388,1762497041288,-9668.84785787,0.00018,2]
[393345390,1762497041298,-14942.73645127,0.00018,2]
[393345392,1762497041307,-17134.36500967,0.00018,2]
[393345399,1762497041365,-4072.24531579,0.00018,2]
[393345929,1762497046667,-3675.01522186,0.00018,2]
[393345930,1762497046677,-156.7,0.00018,2]
[393345931,1762497046688,-163.09712074,0.00018028,2]
[393345933,1762497046697,-370.0,0.00018055,2]
[393345934,1762497046706,-370.0,0.00018082,2]
[393345936,1762497046716,-169.52768377,0.00018094,2]
[393345939,1762497046725,-156.7,0.000181,2]
[393345941,1762497046735,-385.0,0.00018106,2]
[393345942,1762497046744,-370.0,0.00018141,2]
[393345944,1762497046753,-370.0,0.00018144,2]
[393345946,1762497046762,-156.7,0.000182,2]
[393345948,1762497046772,-370.0,0.00018225,2]
[393345950,1762497046781,-87.25997365,0.00018259,2]
[393345952,1762497046792,-92.74002635,0.00018259,2]
[393345954,1762497046801,-180.0,0.00018259,2]
[393345956,1762497046811,-272.90536041,0.00018259,2]
[393345958,1762497046820,-803.00835477,0.00018333,2]
[393345987,1762497404809,999.999999,0.00015,20]
[393345996,1762497502165,555.69,0.00016477,3]
[393346051,1762498021738,1483.870351,0.00037164,120]
[393346052,1762498033859,569.0,0.00032877,120]
[393346083,1762498232331,-155.90753338,0.00015291,2]
[393346085,1762498232341,-154.279,0.00016158,2]
[393346087,1762498232350,-21113.0597752,0.00016487,2]
[393346246,1762498240445,-109897.24067464,0.00016487,2]
[393346248,1762498240456,-45679.5228,0.00016487,2]
[393346434,1762498243410,-4755.79579999,0.00016487,2]
[393346435,1762498243421,-10162.5468,0.00016487,2]
[393346461,1762498246792,-6184.27527534,0.00016487,2]
[393346462,1762498246853,-1060.77017903,0.00016487,2]
[393346463,1762498246914,-1118.97199845,0.00016487,2]
[393346465,1762498591967,5135.34,0.00032877,120]
[393346466,1762498596344,209.39360592,0.00014468,2]
[393346467,1762498604342,209.39360592,0.00014468,2]
[393346476,1762498749334,166.62,0.00032877,120]
[393346478,1762498824340,484.241876,0.00013699,2]
[393346479,1762498829238,7667.69995139,0.0003287,120]
[393346484,1762499030100,500.0,0.00037189,60]
[393346485,1762499030327,549.93958435,0.00037189,60]
[393346492,1762499338683,4176.91,0.00037189,60]
[393346493,1762499338932,4176.91,0.00037189,60]
[393346494,1762499339379,4176.91,0.00037189,60]
[393346495,1762499339651,4176.91,0.00037189,60]
[393346496,1762499339903,4176.91,0.00037189,60]
[393346497,1762499340173,4176.91,0.00037189,60]
[393346498,1762499340418,4176.91,0.00037189,60]
[393346499,1762499340673,4176.91,0.00037189,60]
[393346500,1762499340906,4176.91,0.00037189,60]
[393346501,1762499341141,4176.91,0.00037189,60]
[393346502,1762499341387,4176.91,0.00037189,60]
[393346503,1762499341620,4176.91,0.00037189,60]
[393346504,1762499341869,4176.91,0.00037189,60]
[393346505,1762499342154,4176.91,0.00037189,60]
[393346506,1762499342427,4176.91,0.00037189,60]
[393346507,1762499342698,4176.91,0.00037189,120]
[393346508,1762499342941,4176.91,0.00037189,120]
[393346509,1762499343185,4176.91,0.00037189,120]
[393346510,1762499343425,4176.91,0.00037189,120]
[393346511,1762499343655,4176.91,0.00037189,120]
[393346512,1762499343897,4176.91,0.00037189,120]
[393346513,1762499344158,4176.91,0.00037189,120]
[393346514,1762499344515,4176.91,0.00037189,120]
[393346515,1762499345063,4177.07,0.00037189,120]
[393346516,1762499363079,442.19600556,0.00037189,60]
[393346545,1762499432647,-170.60410275,0.00014855,2]
[393346546,1762499432657,-209.39360592,0.00014911,2]
[393346547,1762499432667,-46.29361324,0.0001606,2]
[393346548,1762499432679,-134.68738676,0.0001606,2]
[393346549,1762499432688,-300.0,0.00016337,2]
[393346550,1762499432697,-951.34653232,0.00016338,2]
[393346551,1762499432709,-1069.07701882,0.00016338,2]
[393346552,1762499432719,-5586.50160804,0.00016338,2]
[393346553,1762499432728,-743.77688385,0.00016342,2]
[393346554,1762499432737,-500.0,0.00016386,2]
[393346555,1762499432747,-500.0,0.00016386,2]
[393346556,1762499432756,-500.0,0.00016386,2]
[393346558,1762499432765,-500.0,0.00016386,2]
[393346561,1762499432775,-500.0,0.00016386,2]
[393346563,1762499432784,-500.0,0.00016386,2]
[393346565,1762499432793,-344.33009223,0.00016386,2]
[393346567,1762499432803,-507.96004882,0.00016386,2]
[393346569,1762499432812,-374.86533641,0.00016386,2]
[393346571,1762499432821,-500.0,0.00016387,2]
[393346572,1762499432830,-500.0,0.00016387,2]
[393346574,1762499432839,-500.0,0.00016387,2]
[393346576,1762499432848,-500.0,0.00016387,2]
[393346578,1762499432857,-685000.0,0.00016387,2]
[393346579,1762499432866,-500.0,0.00016438,2]
[393346581,1762499432875,-500.0,0.00016438,2]
[393346583,1762499432884,-500.0,0.00016438,2]
[393346585,1762499432894,-500.0,0.00016438,2]
[393346587,1762499432903,-500.0,0.00016438,2]
[393346589,1762499432912,-500.0,0.00016438,2]
[393346591,1762499432921,-500.0,0.00016438,2]
[393346593,1762499432930,-500.0,0.00016438,2]
[393346595,1762499432939,-500.0,0.00016438,2]
[393346597,1762499432948,-500.0,0.00016438,2]
[393346598,1762499432957,-500.0,0.00016438,2]
[393346600,1762499432967,-500.0,0.00016438,2]
[393346602,1762499432976,-500.0,0.00016438,2]
[393346604,1762499432985,-500.0,0.00016438,2]
[393346606,1762499432995,-500.0,0.00016438,2]
[393346608,1762499433004,-500.0,0.00016438,2]
[393346610,1762499433013,-500.0,0.00016438,2]
[393346612,1762499433026,-500.0,0.00016438,2]
[393346613,1762499433036,-500.0,0.00016438,2]
[393346615,1762499433045,-500.0,0.00016438,2]
[393346618,1762499433054,-500.0,0.00016438,2]
[393346620,1762499433065,-619.07277338,0.00016438,2]
[393346621,1762499433074,-500.0,0.00016438,2]
[393346623,1762499433084,-500.0,0.00016438,2]
[393346625,1762499433093,-500.0,0.00016438,2]
[393346627,1762499433103,-7541.9198887,0.00016833,2]
[393346630,1762499433113,-2620.070829,0.00016833,2]